bitfinex/quotes_SOLUSD_20251120
["timestamp","ask_amount","ask_price","bid_price","bid_amount"]
[1763626003799,0.71,143.87,143.81,24.53757157]
[1763626003800,0.71,143.87,143.85,6.97214179]
[1763626004331,0.71,143.87,143.84,6.95207414]
[1763626006331,0.71,143.87,143.82,16.74196355]
[1763626006518,0.71,143.87,143.83,6.97214179]
[1763626006720,0.71,143.87,143.84,6.97214179]
[1763626007401,0.71,143.87,143.85,6.97214179]
[1763626008741,0.71,143.87,143.85,13.92382374]
[1763626008921,14.63300238,143.87,143.81,0.2]
[1763626009250,0.71,143.86,143.82,4.57563762]
[1763626009425,0.71,143.86,143.82,6.97214179]
[1763626009610,7.68214179,143.86,143.81,23.91458439]
[1763626009811,7.68214179,143.86,143.82,4.57627209]
[1763626010013,0.71,143.85,143.81,23.91458439]
[1763626010226,0.71,143.85,143.82,4.57632212]
[1763626010424,0.71,143.85,143.81,23.91458439]
[1763626010622,0.71,143.85,143.82,4.57521281]
[1763626010834,0.71,143.85,143.81,23.91458439]
[1763626011020,0.71,143.85,143.82,4.57412943]
[1763626011221,0.71,143.85,143.81,23.91458439]
[1763626011537,0.71,143.85,143.82,4.57413482]
[1763626011726,0.71,143.85,143.82,6.97214179]
[1763626012622,0.71,143.85,143.81,23.91458439]
[1763626012825,0.71,143.85,143.82,4.57681591]
[1763626013009,0.71,143.85,143.81,23.91458439]
[1763626013215,0.71,143.85,143.82,4.57681584]
[1763626013414,0.71,143.85,143.81,23.91458439]
[1763626013710,7.66185833,143.85,143.81,23.91458439]
[1763626013928,0.71,143.85,143.81,23.91458439]
[1763626014145,0.71,143.84,143.81,23.91458439]
[1763626015514,0.71,143.84,143.82,6.97214179]
[1763626016724,13.92272485,143.88,143.83,11.54729757]
[1763626016725,0.71,143.86,143.83,11.54729757]
[1763626016918,0.71,143.86,143.83,6.97214179]
[1763626018429,0.71,143.86,143.84,6.97214179]
[1763626018833,0.71,143.88,143.84,13.92400385]
[1763626019532,7.66032123,143.88,143.84,6.97214179]
[1763626019922,7.66032123,143.88,143.83,17.31096948]
[1763626019923,0.71,143.87,143.83,17.31096948]
[1763626020123,0.71,143.87,143.83,16.76096948]
[1763626020324,0.71,143.89,143.86,6.97214179]
[1763626020821,0.71,143.89,143.87,6.95071939]
[1763626021023,0.71,143.9,143.87,6.95071939]
[1763626021442,0.71,143.9,143.85,9.78882769]
[1763626021625,6.97214179,143.89,143.85,9.78882769]
[1763626021824,7.68214179,143.9,143.85,9.78882769]
[1763626022133,0.71,143.89,143.85,16.76096948]
[1763626022751,0.71,143.89,143.86,6.95120255]
[1763626023062,0.71,143.89,143.87,2.60098847]
[1763626023252,0.71,143.91,143.87,2.60098847]
[1763626024357,2.60098847,143.9,143.86,18.12096]
[1763626024530,2.60098847,143.9,143.85,19.3413345]
[1763626024727,6.9484351,143.92,143.85,9.78882769]
[1763626024728,10.26097874,143.89,143.85,9.78882769]
[1763626025253,0.71,143.88,143.85,9.78882769]
[1763626025640,0.71,143.88,143.85,16.74049415]
[1763626026226,0.71,143.88,143.85,19.34148262]
[1763626027626,0.71,143.88,143.84,27.67400836]
[1763626027834,7.66031858,143.88,143.84,6.95205989]
[1763626028028,10.26130705,143.88,143.84,6.95205989]
[1763626028228,0.71,143.87,143.84,6.95205989]
[1763626028460,0.71,143.87,143.84,9.55304836]
[1763626029054,0.71,143.87,143.84,6.95205989]
[1763626029551,0.71,143.87,143.82,18.12096]
[1763626029552,2.60098847,143.86,143.82,18.12096]
[1763626029756,7.66076616,143.87,143.82,18.12096]
[1763626029757,3.31098847,143.85,143.82,18.12096]
[1763626030062,2.60098847,143.84,143.81,0.2]
[1763626030363,3.31098847,143.84,143.81,0.2]
[1763626030532,2.60098847,143.82,143.81,0.2]
[1763626030958,10.26412433,143.82,143.81,0.2]
[1763626033039,28.38508433,143.82,143.81,0.2]
[1763626033231,38.17391202,143.82,143.81,0.2]
[1763626034846,42.551492,143.82,143.81,0.2]
[1763626035734,32.76266431,143.82,143.81,0.2]
[1763626036156,25.78409586,143.82,143.81,0.2]
[1763626036355,32.76266431,143.82,143.81,0.2]
[1763626040848,14.64170431,143.82,143.81,0.2]
[1763626041050,7.66313586,143.82,143.81,0.2]
[1763626041277,14.64170431,143.82,143.81,0.2]
[1763626041773,7.63313586,143.82,143.81,0.2]
[1763626042351,0.68,143.82,143.81,4.80094849]
[1763626042582,14.61170431,143.82,143.81,4.80094849]
[1763626042788,31.99454397,143.82,143.76,5.78594874]
[1763626042953,6.97856845,143.79,143.77,9.71784923]
[1763626043149,6.97856845,143.79,143.78,4.60356693]
[1763626043552,6.97856845,143.79,143.74,5.78594874]
[1763626043779,6.97856845,143.77,143.75,4.60836633]
[1763626043972,6.97856845,143.77,143.76,4.60836633]
[1763626044149,7.65856845,143.77,143.76,4.60836633]
[1763626044561,0.68,143.77,143.76,4.60836633]
[1763626045363,14.61412245,143.77,143.76,4.60836633]
[1763626046089,7.65856845,143.77,143.76,4.60836633]
[1763626046286,14.61412245,143.77,143.76,4.60836633]
[1763626046683,7.65856845,143.77,143.76,4.60836633]
[1763626046982,14.61412245,143.77,143.76,4.60836633]
[1763626050675,7.65856845,143.77,143.76,4.60836633]
[1763626050871,18.43768801,143.77,143.76,4.60836633]
[1763626051073,10.80213401,143.78,143.76,4.60836633]
[1763626051287,0.7,143.79,143.76,0.69]
[1763626051488,0.7,143.79,143.75,17.7586436]
[1763626051489,11.50213401,143.79,143.77,4.60584567]
[1763626051773,10.80213401,143.78,143.74,6.95694043]
[1763626051972,11.50213401,143.78,143.75,4.60613981]
[1763626052188,11.50213401,143.78,143.76,4.60613981]
[1763626052368,11.50213401,143.78,143.77,4.60613981]
[1763626052871,18.45720425,143.78,143.77,4.60613981]
[1763626053382,11.50213401,143.78,143.77,4.60613981]
[1763626053786,18.45720425,143.78,143.77,4.60613981]
[1763626054182,18.45720425,143.78,143.74,7.64691626]
[1763626054497,18.45720425,143.78,143.75,4.61004883]
[1763626054795,11.72742586,143.77,143.76,4.61004883]
[1763626054990,7.655554,143.77,143.76,4.61004883]
[1763626055300,0.7,143.77,143.73,6.95742671]
[1763626055599,0.7,143.77,143.74,4.61040892]
[1763626055808,0.7,143.77,143.75,4.61040892]
[1763626055982,0.7,143.77,143.73,6.95742671]
[1763626056182,0.7,143.77,143.74,4.61040823]
[1763626056393,0.7,143.77,143.75,4.61040823]
[1763626056593,11.72751965,143.77,143.73,6.95742671]
[1763626056793,7.65564779,143.77,143.74,4.61017373]
[1763626057007,11.72751965,143.77,143.75,4.61017373]
[1763626057206,11.72751965,143.77,143.73,7.64742671]
[1763626057403,11.02751965,143.77,143.74,4.61002101]
[1763626057594,11.02751965,143.77,143.73,6.95742671]
[1763626057595,4.77187186,143.76,143.73,6.95742671]
[1763626057788,4.07187186,143.75,143.72,0.2]
[1763626058034,4.07187186,143.73,143.72,0.2]
[1763626058390,4.77187186,143.73,143.72,0.2]
[1763626058788,4.77187186,143.73,143.7,0.2]
[1763626058985,4.07187186,143.71,143.7,0.2]
[1763626059412,8.84374372,143.71,143.7,0.2]
[1763626059917,11.73032986,143.71,143.7,0.2]
[1763626060404,7.658458,143.71,143.7,0.2]
[1763626060640,4.77187186,143.71,143.7,0.2]
[1763626062092,11.73032986,143.71,143.7,0.2]
[1763626074434,11.03032986,143.71,143.7,0.2]
[1763626074743,11.75032986,143.71,143.7,0.2]
[1763626077120,4.07187186,143.71,143.7,0.2]
[1763626077348,11.03032986,143.71,143.7,0.2]
[1763626077718,4.07187186,143.73,143.7,0.92]
[1763626077919,4.07187186,143.73,143.71,4.61887329]
[1763626078120,4.07187186,143.75,143.71,0.72]
[1763626078318,4.07187186,143.75,143.72,5.33626049]
[1763626078634,4.07187186,143.75,143.73,4.61626049]
[1763626078834,4.07187186,143.74,143.7,4.27187186]
[1763626079040,4.07187186,143.73,143.71,5.33747088]
[1763626079339,4.07187186,143.73,143.72,4.61747088]
[1763626080333,0.72,143.74,143.72,4.61747088]
[1763626080334,4.79187186,143.74,143.72,4.61747088]
[1763626080511,4.79187186,143.74,143.73,4.61655902]
[1763626080916,4.79187186,143.74,143.71,0.72]
[1763626081128,4.79187186,143.74,143.72,4.61731328]
[1763626081333,4.79187186,143.74,143.71,0.72]
[1763626081522,4.79187186,143.74,143.72,4.61729609]
[1763626081825,7.67711724,143.74,143.71,0.72]
[1763626082037,4.07187186,143.74,143.72,4.61529202]
[1763626082232,11.02889651,143.74,143.71,0.72]
[1763626082418,11.02889651,143.74,143.72,4.61549163]
[1763626082713,11.02889651,143.74,143.71,0.72]
[1763626082916,11.02889651,143.74,143.72,4.6154898]
[1763626083218,4.79187186,143.73,143.7,0.2]
[1763626083418,4.07187186,143.73,143.71,5.33661921]
[1763626083625,11.02889651,143.74,143.72,4.61661921]
[1763626083839,11.74889651,143.74,143.71,0.72]
[1763626084045,11.74889651,143.74,143.72,4.61661573]
[1763626084239,4.07187186,143.73,143.7,0.2]
[1763626084554,0.72,143.73,143.71,4.61654084]
[1763626084838,4.79187186,143.72,143.7,0.2]
[1763626085145,0.72,143.72,143.7,0.2]
[1763626085443,18.84096,143.71,143.7,0.2]
[1763626085646,25.799418,143.71,143.7,0.2]
[1763626085821,29.87128986,143.71,143.7,0.2]
[1763626087243,33.94316172,143.71,143.7,0.2]
[1763626087440,33.94316172,143.71,143.69,0.2]
[1763626087740,21.53964179,143.7,143.69,0.2]
[1763626087945,21.53964179,143.7,143.68,0.2]
[1763626088143,4.79187186,143.69,143.68,0.2]
[1763626088948,18.12096,143.68,143.67,0.2]
[1763626089127,22.91283186,143.68,143.67,0.2]
[1763626089325,18.12096,143.67,143.66,0.2]
[1763626089550,22.91283186,143.67,143.66,0.2]
[1763626089748,29.87322721,143.67,143.66,0.2]
[1763626090543,11.03226721,143.67,143.66,0.2]
[1763626091234,6.96039535,143.67,143.66,0.2]
[1763626091445,11.03226721,143.67,143.66,0.2]
[1763626092039,11.75226721,143.67,143.66,0.2]
[1763626092861,29.87322721,143.67,143.64,0.2]
[1763626093042,4.79187186,143.66,143.64,0.2]
[1763626093239,18.12096,143.63,143.61,0.2]
[1763626093441,9.78882769,143.65,143.59,0.2]
[1763626093442,22.91283186,143.62,143.59,0.2]
[1763626093644,4.07187186,143.6,143.59,0.2]
[1763626093842,11.03566016,143.6,143.59,0.2]
[1763626094042,11.75566016,143.6,143.59,0.2]
[1763626095359,15.82753202,143.6,143.58,0.2]
[1763626095655,8.86374372,143.59,143.58,0.2]
[1763626096334,18.65257141,143.59,143.57,0.2]
[1763626096647,8.86374372,143.58,143.57,0.2]
[1763626097267,0.72,143.58,143.57,0.2]
[1763626097447,18.84096,143.61,143.57,0.92]
[1763626097651,4.07187186,143.58,143.57,0.92]
[1763626098048,4.07187186,143.58,143.57,0.2]
[1763626099748,4.07187186,143.58,143.57,0.92]
[1763626099942,4.07187186,143.59,143.57,0.92]
[1763626100163,4.07187186,143.6,143.58,0.7]
[1763626101257,11.03579551,143.6,143.58,0.7]
[1763626101740,4.07187186,143.59,143.58,0.7]
[1763626102961,6.96392365,143.6,143.58,0.7]
[1763626103172,4.07187186,143.59,143.58,0.7]
[1763626103869,4.07187186,143.63,143.58,27.50360587]
[1763626104084,4.07187186,143.63,143.59,9.38264587]
[1763626104260,4.07187186,143.63,143.6,4.60839331]
[1763626104583,4.07187186,143.63,143.6,0.7]
[1763626104766,4.07187186,143.63,143.61,0.7]
[1763626105872,11.03422069,143.63,143.61,0.7]
[1763626108352,4.07187186,143.63,143.61,0.7]
[1763626110865,6.9619896,143.64,143.61,0.7]
[1763626111065,4.07187186,143.63,143.61,0.7]
[1763626112260,17.40333092,143.66,143.61,11.73501776]
[1763626112261,4.07187186,143.66,143.61,11.73501776]
[1763626112671,11.03226721,143.67,143.62,4.79187186]
[1763626112873,9.57001863,143.67,143.62,3.32962328]
[1763626113075,9.57001863,143.67,143.63,0.72]
[1763626113266,2.60962328,143.66,143.63,0.72]
[1763626113454,2.60962328,143.66,143.61,2.60962328]
[1763626113782,2.60962328,143.64,143.62,0.72]
[1763626114681,2.60962328,143.63,143.6,0.72]
[1763626114988,2.60962328,143.63,143.61,0.72]
[1763626115673,2.60962328,143.63,143.58,18.12096]
[1763626115857,2.60962328,143.63,143.59,5.32924144]
[1763626116054,2.60962328,143.63,143.59,0.72]
[1763626116258,2.60962328,143.63,143.6,0.72]
[1763626116567,7.61201814,143.64,143.6,0.72]
[1763626116887,2.60962328,143.63,143.6,0.72]
[1763626117586,10.22164142,143.64,143.6,0.72]
[1763626117784,10.22164142,143.64,143.6,7.68373791]
[1763626117986,17.40219963,143.66,143.61,2.60962328]
[1763626117987,6.96099448,143.66,143.61,2.60962328]
[1763626118174,9.57061776,143.66,143.61,3.32962328]
[1763626118371,9.57061776,143.66,143.62,0.72]
[1763626118683,9.57021399,143.67,143.62,3.32962328]
[1763626118981,2.60962328,143.66,143.62,0.72]
[1763626119181,2.60962328,143.66,143.63,0.72]
[1763626119793,9.5709877,143.65,143.63,0.72]
[1763626119964,6.96136442,143.65,143.63,0.72]
[1763626120387,9.5709877,143.65,143.6,9.57336119]
[1763626120707,2.60962328,143.63,143.6,0.72]
[1763626121892,2.60962328,143.62,143.6,0.72]
[1763626122102,9.57204313,143.63,143.6,0.72]
[1763626122294,7.61195524,143.64,143.6,0.72]
[1763626122594,2.60962328,143.63,143.6,0.72]
[1763626122801,3.25962328,143.63,143.59,6.9641813]
[1763626122980,2.60962328,143.61,143.57,7.88511255]
[1763626123171,2.60962328,143.6,143.57,0.92]
[1763626123377,3.25962328,143.61,143.58,0.72]
[1763626123592,2.60962328,143.61,143.58,0.72]
[1763626124498,9.5729406,143.61,143.58,0.72]
[1763626125402,6.96331732,143.61,143.58,0.72]
[1763626126904,6.96331732,143.61,143.58,7.68475578]
[1763626127210,7.61331732,143.61,143.58,0.72]
[1763626127696,9.57251984,143.62,143.58,7.68468797]
[1763626127903,2.60962328,143.63,143.59,4.62667367]
[1763626128220,9.57216156,143.63,143.59,7.68420702]
[1763626128405,9.57216156,143.63,143.6,0.72]
[1763626130180,2.60962328,143.62,143.6,0.72]
[1763626130388,2.60962328,143.62,143.57,15.56036707]
[1763626130709,2.60962328,143.61,143.58,5.34679278]
[1763626131006,2.60962328,143.61,143.59,4.63679278]
[1763626131210,2.60962328,143.61,143.6,4.63679278]
[1763626131579,10.24253369,143.62,143.6,4.63679278]
[1763626131781,10.24253369,143.62,143.59,0.71]
[1763626131983,10.24253369,143.62,143.6,4.6373564]
[1763626132188,9.57253369,143.62,143.58,6.96454954]
[1763626132409,0.67,143.61,143.59,4.63965977]
[1763626132615,2.60962328,143.61,143.6,4.63965977]
[1763626133400,10.24253369,143.62,143.6,4.63965977]
[1763626133608,9.57253369,143.62,143.59,0.71]
[1763626133810,9.57253369,143.62,143.6,4.64046266]
[1763626134007,3.27962328,143.64,143.59,0.71]
[1763626134206,3.27962328,143.64,143.6,4.6399888]
[1763626134207,0.67,143.63,143.6,4.6399888]
[1763626134406,0.67,143.63,143.61,4.6399888]
[1763626134718,0.67,143.63,143.6,0.71]
[1763626134923,0.67,143.63,143.61,4.64015566]
[1763626135103,0.67,143.63,143.6,0.71]
[1763626135292,0.67,143.63,143.61,4.63970168]
[1763626135493,9.57167201,143.64,143.62,5.34970168]
[1763626135731,2.60962328,143.64,143.62,0.71]
[1763626136023,3.27962328,143.64,143.6,7.67357479]
[1763626136228,3.27962328,143.64,143.61,5.34978008]
[1763626136429,10.24152268,143.64,143.62,4.63978008]
[1763626136733,10.24152268,143.64,143.61,0.71]
[1763626136906,10.24152268,143.64,143.62,4.6397785]
[1763626137235,10.24152268,143.64,143.61,0.71]
[1763626137402,10.24152268,143.64,143.62,4.64082886]
[1763626137594,10.24152268,143.64,143.61,0.71]
[1763626137794,10.24152268,143.64,143.62,4.64173639]
[1763626138128,10.24152268,143.64,143.61,0.71]
[1763626138325,10.24152268,143.64,143.62,4.64030029]
[1763626138499,10.24152268,143.64,143.61,0.71]
[1763626138704,10.24152268,143.64,143.62,4.64062774]
[1763626138902,10.24152268,143.64,143.61,0.71]
[1763626139212,10.24152268,143.64,143.62,4.64029865]
[1763626139412,10.24152268,143.64,143.61,0.71]
[1763626139612,10.24152268,143.64,143.62,4.64100587]
[1763626139912,10.24152268,143.64,143.61,0.71]
[1763626140113,10.24152268,143.64,143.62,4.64100505]
[1763626140314,10.24152268,143.64,143.61,0.71]
[1763626140518,10.24152268,143.64,143.62,4.64298393]
[1763626140730,2.60962328,143.63,143.6,0.71]
[1763626140906,2.60962328,143.63,143.61,4.64325949]
[1763626141231,3.27962328,143.63,143.62,4.64325949]
[1763626141729,10.24195705,143.63,143.62,4.64325949]
[1763626143801,10.24195705,143.63,143.57,6.69594874]
[1763626143802,27.64779148,143.63,143.57,6.69594874]
[1763626144095,2.60962328,143.6,143.58,10.43875042]
[1763626144418,2.60962328,143.6,143.59,4.65280168]
[1763626144618,2.60962328,143.61,143.59,4.65280168]
[1763626144826,9.57292667,143.61,143.6,4.65280168]
[1763626145923,6.96330339,143.61,143.6,4.65280168]
[1763626146100,10.24264038,143.62,143.6,4.65280168]
[1763626146309,3.27962328,143.63,143.61,4.65280168]
[1763626146602,2.60962328,143.63,143.62,4.65280168]
[1763626147065,35.52459287,143.65,143.62,5.36280168]
[1763626147066,2.60962328,143.65,143.62,5.36280168]
[1763626147231,2.60962328,143.65,143.63,4.65280168]
[1763626147433,2.60962328,143.65,143.64,4.65280168]
[1763626147828,3.27962328,143.65,143.64,4.65280168]
[1763626148029,10.2409877,143.65,143.64,4.65280168]
[1763626148463,2.60962328,143.65,143.64,4.65280168]
[1763626148831,9.5709877,143.65,143.64,4.65280168]
[1763626149029,10.2409877,143.65,143.64,4.65280168]
[1763626149845,0.67,143.69,143.64,7.97242496]
[1763626150056,10.23926253,143.69,143.65,11.14875042]
[1763626150355,10.23926253,143.69,143.66,4.65280168]
[1763626150571,2.60962328,143.68,143.67,4.65280168]
[1763626151482,3.27962328,143.68,143.67,4.65280168]
[1763626152177,10.23953419,143.68,143.67,4.65280168]
[1763626152544,10.23953419,143.68,143.63,12.74808544]
[1763626152782,0.67,143.67,143.64,4.64497631]
[1763626153073,0.67,143.67,143.65,4.64497631]
[1763626153263,0.67,143.67,143.66,4.64497631]
[1763626153575,6.95953539,143.69,143.66,4.64440301]
[1763626153761,0.67,143.68,143.64,0.71]
[1763626153963,2.60962328,143.67,143.65,4.64361008]
[1763626154273,9.57001863,143.67,143.66,4.64361008]
[1763626154473,9.57001863,143.67,143.61,6.49594874]
[1763626154784,9.57001863,143.67,143.6,16.75224587]
[1763626154785,2.60962328,143.63,143.62,4.644699]
[1763626156279,9.57195705,143.63,143.62,4.644699]
[1763626158092,10.24195705,143.63,143.62,4.644699]
[1763626158451,10.24195705,143.63,143.58,13.460689]
[1763626158671,2.60962328,143.62,143.59,5.35806271]
[1763626158898,2.60962328,143.62,143.6,4.64806271]
[1763626159188,10.24244182,143.62,143.61,4.64806271]
[1763626159357,3.27962328,143.62,143.61,4.64806271]
[1763626159551,2.60962328,143.62,143.61,4.64806271]
[1763626160275,9.57244182,143.62,143.61,4.64806271]
[1763626162988,10.27244182,143.62,143.61,4.64806271]
[1763626165505,27.84386168,143.64,143.61,4.64806271]
[1763626165506,6.9625515,143.63,143.61,4.64806271]
[1763626165792,2.60962328,143.63,143.62,4.64806271]
[1763626166482,6.96202094,143.64,143.62,5.31806271]
[1763626166483,9.57164422,143.64,143.62,5.31806271]
[1763626166663,9.57164422,143.64,143.63,4.64806271]
[1763626167587,9.57164422,143.64,143.61,0.67]
[1763626167788,2.60962328,143.63,143.62,4.64409903]
[1763626168678,10.24164422,143.64,143.62,4.64409903]
[1763626168901,9.57164422,143.64,143.63,4.64409903]
[1763626169686,2.60962328,143.65,143.63,5.30409903]
[1763626169878,2.60962328,143.65,143.64,4.64409903]
[1763626170077,2.60962328,143.71,143.65,9.78882769]
[1763626170308,3.27962328,143.72,143.67,2.60962328]
[1763626170474,2.60962328,143.71,143.68,4.64409903]
[1763626170668,2.60962328,143.71,143.69,4.64409903]
[1763626171002,2.60962328,143.71,143.7,4.64409903]
[1763626171297,9.56808128,143.71,143.65,6.44594874]
[1763626171473,2.60962328,143.68,143.66,4.63303221]
[1763626171675,2.60962328,143.68,143.67,4.63303221]
[1763626172392,3.27962328,143.68,143.63,5.78594874]
[1763626172586,2.60962328,143.67,143.64,5.29330198]
[1763626172766,2.60962328,143.67,143.65,4.63330198]
[1763626172962,3.27962328,143.68,143.64,0.66]
[1763626173174,3.27962328,143.68,143.65,4.6357536]
[1763626173369,9.57001863,143.67,143.64,0.66]
[1763626173696,9.57001863,143.67,143.65,4.63534996]
[1763626173866,9.57001863,143.67,143.64,0.66]
[1763626174071,9.57001863,143.67,143.65,4.63516512]
[1763626174272,9.57001863,143.67,143.64,0.66]
[1763626174273,9.57001863,143.67,143.66,4.63516512]
[1763626174577,9.57001863,143.67,143.64,0.66]
[1763626174776,11.03771507,143.67,143.65,4.63471176]
[1763626175012,11.70741202,143.68,143.64,0.66]
[1763626175184,6.9600923,143.68,143.65,4.63450791]
[1763626175383,6.9600923,143.68,143.66,4.63450791]
[1763626175582,6.9600923,143.68,143.65,0.66]
[1763626175793,6.9600923,143.68,143.66,4.63302462]
[1763626176095,6.9600923,143.68,143.65,0.66]
[1763626176299,6.9600923,143.68,143.66,4.63275395]
[1763626176594,6.95959597,143.69,143.65,11.69861145]
[1763626176781,4.07731972,143.7,143.65,11.69861145]
[1763626176782,6.95913012,143.7,143.66,9.36794452]
[1763626176972,6.95913012,143.7,143.67,4.6306248]
[1763626177174,6.95913012,143.7,143.68,4.6306248]
[1763626177495,6.95913012,143.7,143.68,0.66]
[1763626177696,4.74731972,143.71,143.69,5.28867378]
[1763626177697,4.07731972,143.71,143.69,5.28867378]
[1763626177998,11.7058348,143.71,143.67,0.66]
[1763626178195,11.7058348,143.71,143.68,4.62821354]
[1763626178497,4.07731972,143.72,143.69,4.62821354]
[1763626178668,11.70536968,143.72,143.68,0.66]
[1763626178870,0.67,143.71,143.69,4.62673502]
[1763626179069,0.67,143.71,143.68,0.66]
[1763626179403,0.67,143.71,143.69,4.62665605]
[1763626179572,0.67,143.71,143.68,0.66]
[1763626179772,0.67,143.71,143.69,4.62531749]
[1763626179982,0.67,143.71,143.68,0.66]
[1763626180186,4.74731972,143.71,143.69,4.62531783]
[1763626180514,4.07731972,143.7,143.64,24.56690874]
[1763626180805,4.07731972,143.67,143.65,4.62622863]
[1763626180980,4.07731972,143.67,143.64,0.66]
[1763626181184,28.43239889,143.71,143.62,0.66]
[1763626181185,4.74731972,143.66,143.62,0.66]
[1763626181499,4.07731972,143.65,143.62,0.66]
[1763626181679,4.07731972,143.65,143.63,4.62994318]
[1763626182016,4.74731972,143.66,143.62,0.66]
[1763626182314,4.74731972,143.66,143.63,4.62940147]
[1763626182503,4.74731972,143.66,143.64,4.62940147]
[1763626182811,4.74731972,143.66,143.63,0.66]
[1763626183012,11.7079102,143.67,143.64,4.62909626]
[1763626183196,4.07731972,143.65,143.61,5.78594874]
[1763626183373,4.07731972,143.64,143.62,4.62898725]
[1763626183694,4.07731972,143.64,143.6,7.62378717]
[1763626183882,4.07731972,143.64,143.61,5.29046842]
[1763626184084,4.07731972,143.64,143.62,4.63046842]
[1763626184394,11.70938788,143.64,143.61,0.66]
[1763626184573,11.70938788,143.64,143.62,4.63054956]
[1763626184896,11.70938788,143.64,143.61,0.66]
[1763626185072,11.70938788,143.64,143.62,4.63108914]
[1763626185273,11.70938788,143.64,143.61,0.66]
[1763626185492,4.07731972,143.63,143.62,4.63139965]
[1763626185681,4.07731972,143.63,143.6,0.66]
[1763626186000,11.70938788,143.64,143.61,4.63227773]
[1763626186176,11.70938788,143.64,143.6,0.66]
[1763626186376,11.70938788,143.64,143.61,4.63254392]
[1763626186586,6.96139538,143.65,143.6,11.70089825]
[1763626186784,11.0387151,143.65,143.61,4.63220114]
[1763626186985,11.0387151,143.65,143.62,4.63220114]
[1763626187184,11.0387151,143.65,143.62,0.66]
[1763626187384,11.7087151,143.65,143.62,0.66]
[1763626187974,7.63139538,143.65,143.62,0.66]
[1763626188174,11.7087151,143.65,143.62,0.66]
[1763626188383,11.7087151,143.65,143.63,4.63084991]
[1763626188583,11.03787402,143.67,143.64,4.63065497]
[1763626188783,4.07731972,143.68,143.65,4.62962631]
[1763626188999,4.07731972,143.68,143.63,4.07731972]
[1763626189000,4.74731972,143.69,143.64,4.07731972]
[1763626189209,4.74731972,143.69,143.65,5.28960198]
[1763626189408,0.67,143.68,143.65,0.66]
[1763626189612,7.63028245,143.68,143.64,4.73731972]
[1763626189796,7.63028245,143.68,143.65,4.63010538]
[1763626189997,7.63028245,143.68,143.64,4.73731972]
[1763626190202,7.63028245,143.68,143.65,4.63010538]
[1763626190408,7.63028245,143.68,143.64,4.73731972]
[1763626190614,7.63028245,143.68,143.65,4.63055247]
[1763626190784,7.63028245,143.68,143.64,4.73731972]
[1763626190985,7.63028245,143.68,143.65,4.63035827]
[1763626191186,7.63028245,143.68,143.64,4.73731972]
[1763626191413,7.63028245,143.68,143.65,4.63083477]
[1763626191604,7.63028245,143.68,143.64,4.73731972]
[1763626191799,11.70760217,143.68,143.65,4.63083394]
[1763626192002,11.70760217,143.68,143.64,0.72]
[1763626192317,11.70760217,143.68,143.65,4.63102967]
[1763626192540,18.83096,143.72,143.64,11.75913611]
[1763626192692,4.78731972,143.7,143.65,8.70946894]
[1763626192892,4.78731972,143.7,143.66,4.63214922]
[1763626193099,11.03577772,143.71,143.67,4.63214922]
[1763626193310,11.74577772,143.71,143.68,4.628992]
[1763626193515,11.03577772,143.71,143.68,0.72]
[1763626193721,11.03539025,143.72,143.69,5.34821091]
[1763626193891,6.95765092,143.73,143.69,11.75667133]
[1763626194091,6.95765092,143.73,143.7,0.72]
[1763626194501,0.71,143.72,143.66,0.72]
[1763626194707,4.07731972,143.72,143.67,9.42511253]
[1763626194913,7.66765092,143.73,143.69,4.07731972]
[1763626194914,6.95765092,143.73,143.69,4.07731972]
[1763626195096,6.95765092,143.73,143.7,5.34779281]
[1763626195297,6.95765092,143.73,143.7,0.72]
[1763626195503,11.74453513,143.74,143.7,0.72]
[1763626197296,4.78731972,143.73,143.69,0.72]
[1763626197498,4.78731972,143.73,143.7,4.62258912]
[1763626197806,11.74516636,143.73,143.69,0.72]
[1763626198001,11.74516636,143.73,143.7,4.6222468]
[1763626198002,6.95784664,143.73,143.7,4.6222468]
[1763626198205,11.03516636,143.73,143.69,7.67937873]
[1763626198404,4.07731972,143.73,143.7,5.34070993]
[1763626198614,11.03491576,143.73,143.7,0.72]
[1763626199319,11.74491576,143.73,143.7,0.72]
[1763626201118,4.07731972,143.71,143.67,0.72]